fUST/lending_fUST_20250617
["ID","MTS","AMOUNT","RATE_DAILY","PERIOD"]
[366274757,1750170640934,-460.0,0.00024109,6]
[366274760,1750170640957,-460.0,0.00024109,6]
[366274763,1750170640976,-460.0,0.00024109,6]
[366274766,1750170640996,-460.0,0.00024109,6]
[366274769,1750170641015,-460.0,0.00024109,6]
[366274772,1750170641030,-460.0,0.00024109,6]
[366274775,1750170641049,-460.0,0.00024109,6]
[366274778,1750170641068,-460.0,0.00024109,6]
[366274781,1750170641093,-460.0,0.00024109,6]
[366274784,1750170641107,-460.0,0.00024109,6]
[366274786,1750170641122,-264.63030653,0.00024109,6]
[366274789,1750170641143,-375.24844841,0.00024109,6]
[366274792,1750170641158,-460.0,0.00024109,6]
[366274795,1750170641175,-460.0,0.00024109,6]
[366274797,1750170641189,-433.83330714,0.00024109,6]
[366274800,1750170641206,-430.0,0.00024109,6]
[366274802,1750170641222,-460.0,0.00024109,6]
[366274805,1750170641238,-431.48943056,0.00024109,6]
[366274806,1750170641256,-460.0,0.00024109,6]
[366274807,1750170641272,-460.0,0.00024109,6]
[366274808,1750170641289,-460.0,0.00024109,6]
[366274809,1750170641306,-440.0,0.00024109,6]
[366274810,1750170641323,-460.0,0.00024109,6]
[366274811,1750170641339,-460.0,0.00024109,6]
[366274812,1750170641355,-460.0,0.00024109,6]
[366274813,1750170641371,-460.0,0.00024109,6]
[366274814,1750170641388,-460.0,0.00024109,6]
[366274816,1750170641406,-460.0,0.00024109,6]
[366274817,1750170641422,-202.28363737,0.00024109,6]
[366274819,1750170641438,-460.0,0.00024109,6]
[366274822,1750170641455,-460.0,0.00024109,6]
[366274824,1750170641471,-420.0,0.00024109,6]
[366274827,1750170641488,-441.89149295,0.00024109,6]
[366274829,1750170641505,-460.0,0.00024109,6]
[366274832,1750170641522,-460.0,0.00024109,6]
[366274835,1750170641538,-460.0,0.00024109,6]
[366274837,1750170641555,-214.89264213,0.00024109,6]
[366274840,1750170641574,-460.0,0.00024109,6]
[366274843,1750170641593,-411.20734643,0.00024109,6]
[366274846,1750170641611,-460.0,0.00024109,6]
[366274848,1750170641628,-440.0,0.00024109,6]
[366274851,1750170641645,-460.0,0.00024109,6]
[366274854,1750170641663,-506.76639318,0.00024109,6]
[366274856,1750170641681,-460.0,0.00024109,6]
[366274859,1750170641700,-460.0,0.00024109,6]
[366274861,1750170641710,-460.0,0.00024109,6]
[366274863,1750170641721,-440.01762982,0.00024109,6]
[366274865,1750170641730,-460.0,0.00024109,6]
[366274867,1750170641740,-460.0,0.00024109,6]
[366274884,1750170641751,-460.0,0.00024109,6]
[366274888,1750170641942,-460.0,0.00024109,6]
[366274890,1750170641952,-460.0,0.00024109,6]
[366274892,1750170641962,-460.91737686,0.00024109,6]
[366274894,1750170641972,-460.0,0.00024109,6]
[366274896,1750170641982,-555.14593144,0.00024109,6]
[366274898,1750170641991,-345.8727525,0.00024109,6]
[366274900,1750170642001,-460.0,0.00024109,6]
[366274902,1750170642011,-460.0,0.00024109,6]
[366274904,1750170642021,-460.0,0.00024109,6]
[366274906,1750170642031,-460.0,0.00024109,6]
[366274907,1750170642040,-460.0,0.00024109,6]
[366274909,1750170642051,-460.0,0.00024109,6]
[366274912,1750170642061,-460.0,0.00024109,6]
[366274913,1750170642070,-460.0,0.00024109,6]
[366274915,1750170642080,-460.0,0.00024109,6]
[366274917,1750170642089,-460.0,0.00024109,6]
[366274919,1750170642100,-460.0,0.00024109,6]
[366274921,1750170642110,-460.0,0.00024109,6]
[366274923,1750170642119,-460.0,0.00024109,6]
[366274925,1750170642130,-460.0,0.00024109,6]
[366274927,1750170642139,-460.0,0.00024109,6]
[366274929,1750170642149,-460.0,0.00024109,6]
[366274931,1750170642158,-460.0,0.00024109,6]
[366274933,1750170642168,-531.93,0.00024109,6]
[366274935,1750170642177,-460.0,0.00024109,6]
[366274937,1750170642188,-460.0,0.00024109,6]
[366274939,1750170642197,-225.14579487,0.00024109,6]
[366274941,1750170642207,-460.0,0.00024109,6]
[366274943,1750170642217,-460.0,0.00024109,6]
[366274945,1750170642226,-460.0,0.00024109,6]
[366274948,1750170642236,-460.0,0.00024109,6]
[366274950,1750170642245,-460.0,0.00024109,6]
[366274954,1750170642256,-460.0,0.00024109,6]
[366274956,1750170642265,-460.0,0.00024109,6]
[366274958,1750170642275,-460.0,0.00024109,6]
[366274960,1750170642284,-460.0,0.00024109,6]
[366274962,1750170642294,-503.35,0.00024109,6]
[366274964,1750170642303,-460.0,0.00024109,6]
[366274965,1750170642313,-426.64381757,0.00024109,6]
[366274967,1750170642322,-531.58,0.00024109,6]
[366274969,1750170642332,-500.0,0.00024109,6]
[366274971,1750170642341,-460.0,0.00024109,6]
[366274974,1750170642350,-1444.82,0.00024109,6]
[366274976,1750170642360,-460.0,0.00024109,6]
[366274978,1750170642369,-460.0,0.00024109,6]
[366274980,1750170642379,-634.51,0.00024109,6]
[366274983,1750170642388,-460.0,0.00024109,6]
[366274985,1750170642397,-460.0,0.00024109,6]
[366274988,1750170642407,-460.0,0.00024109,6]
[366274990,1750170642417,-460.0,0.00024109,6]
[366274992,1750170642427,-301.44176529,0.00024109,6]
[366274994,1750170642436,-460.0,0.00024109,6]
[366274996,1750170642446,-460.0,0.00024109,6]
[366274998,1750170642456,-460.0,0.00024109,6]
[366275000,1750170642465,-431.05019905,0.00024109,6]
[366275002,1750170642476,-500.0,0.00024109,6]
[366275004,1750170642486,-460.0,0.00024109,6]
[366275006,1750170642496,-430.0,0.00024109,6]
[366275008,1750170642506,-460.0,0.00024109,6]
[366275010,1750170642515,-460.0,0.00024109,6]
[366275012,1750170642525,-460.0,0.00024109,6]
[366275014,1750170642534,-460.0,0.00024109,6]
[366275016,1750170642544,-460.0,0.00024109,6]
[366275018,1750170642553,-460.0,0.00024109,6]
[366275020,1750170642563,-460.0,0.00024109,6]
[366275022,1750170642572,-460.0,0.00024109,6]
[366275024,1750170642582,-363.03324262,0.00024109,6]
[366275025,1750170642591,-460.0,0.00024109,6]
[366275027,1750170642601,-460.0,0.00024109,6]
[366275029,1750170642611,-462.02330637,0.00024109,6]
[366275031,1750170642621,-460.0,0.00024109,6]
[366275033,1750170642631,-460.0,0.00024109,6]
[366275036,1750170642642,-460.0,0.00024109,6]
[366275037,1750170642651,-460.0,0.00024109,6]
[366275039,1750170642661,-405.08251545,0.00024109,6]
[366275041,1750170642671,-460.0,0.00024109,6]
[366275043,1750170642681,-512.42475701,0.00024109,6]
[366275045,1750170642692,-460.0,0.00024109,6]
[366275047,1750170642702,-460.0,0.00024109,6]
[366275049,1750170642712,-460.0,0.00024109,6]
[366275051,1750170642722,-460.0,0.00024109,6]
[366275053,1750170642732,-460.0,0.00024109,6]
[366275055,1750170642743,-431.56909774,0.00024109,6]
[366275057,1750170642752,-460.0,0.00024109,6]
[366275059,1750170642763,-411.90287361,0.00024109,6]
[366275061,1750170642772,-460.0,0.00024109,6]
[366275063,1750170642782,-460.0,0.00024109,6]
[366275065,1750170642792,-460.0,0.00024109,6]
[366275067,1750170642802,-460.0,0.00024109,6]
[366275069,1750170642815,-430.0,0.00024109,6]
[366275071,1750170642824,-460.0,0.00024109,6]
[366275073,1750170642835,-436.61590364,0.00024109,6]
[366275075,1750170642844,-316.33063684,0.00024109,6]
[366275077,1750170642855,-460.0,0.00024109,6]
[366275079,1750170642865,-460.0,0.00024109,6]
[366275081,1750170642875,-500.0,0.00024109,6]
[366275083,1750170642886,-500.0,0.00024109,6]
[366275085,1750170642896,-500.0,0.00024109,6]
[366275087,1750170642906,-500.0,0.00024109,6]
[366275090,1750170642916,-500.0,0.00024109,6]
[366275092,1750170642926,-460.0,0.00024109,6]
[366275094,1750170642936,-500.0,0.00024109,6]
[366275096,1750170642945,-500.0,0.00024109,6]
[366275098,1750170642955,-420.0,0.00024109,6]
[366275100,1750170642965,-460.0,0.00024109,6]
[366275102,1750170642976,-1338.75,0.00024109,6]
[366275104,1750170642986,-420.0,0.00024109,6]
[366275106,1750170642996,-460.0,0.00024109,6]
[366275108,1750170643005,-460.0,0.00024109,6]
[366275110,1750170643015,-460.0,0.00024109,6]
[366275112,1750170643025,-460.0,0.00024109,6]
[366275113,1750170643034,-294.35367001,0.00024109,6]
[366275115,1750170643043,-460.0,0.00024109,6]
[366275117,1750170643053,-460.0,0.00024109,6]
[366275119,1750170643063,-460.0,0.00024109,6]
[366275121,1750170643072,-430.88116929,0.00024109,6]
[366275123,1750170643082,-460.0,0.00024109,6]
[366275125,1750170643091,-460.0,0.00024109,6]
[366275127,1750170643101,-460.0,0.00024109,6]
[366275129,1750170643111,-460.0,0.00024109,6]
[366275131,1750170643121,-609.33,0.00024109,6]
[366275133,1750170643131,-460.0,0.00024109,6]
[366275135,1750170643140,-460.0,0.00024109,6]
[366275137,1750170643150,-3630.13,0.00024109,6]
[366275139,1750170643160,-458.38151557,0.00024109,6]
[366275141,1750170643169,-457.83825876,0.00024109,6]
[366275143,1750170643179,-440.0,0.00024109,6]
[366275145,1750170643189,-460.0,0.00024109,6]
[366275147,1750170643199,-460.0,0.00024109,6]
[366275149,1750170643209,-158.6829329,0.00024109,6]
[366275151,1750170643219,-1029.77,0.00024109,6]
[366275153,1750170643228,-440.0,0.00024109,6]
[366275155,1750170643238,-460.0,0.00024109,6]
[366275157,1750170643247,-460.0,0.00024109,6]
[366275159,1750170643259,-460.0,0.00024109,6]
[366275161,1750170643269,-460.0,0.00024109,6]
[366275163,1750170643279,-784.51,0.00024109,6]
[366275165,1750170643288,-460.0,0.00024109,6]
[366275167,1750170643298,-323.48319142,0.00024109,6]
[366275169,1750170643308,-460.0,0.00024109,6]
[366275171,1750170643318,-460.0,0.00024109,6]
[366275173,1750170643328,-430.0,0.00024109,6]
[366275175,1750170643339,-460.0,0.00024109,6]
[366275177,1750170643348,-287.42543081,0.00024109,6]
[366275179,1750170643358,-882.04,0.00024109,6]
[366275181,1750170643368,-490.25386461,0.00024109,6]
[366275183,1750170643379,-460.0,0.00024109,6]
[366275185,1750170643390,-320.0,0.00024109,6]
[366275187,1750170643400,-460.0,0.00024109,6]
[366275189,1750170643410,-2162.37,0.00024109,6]
[366275191,1750170643420,-1475.26,0.00024109,6]
[366275193,1750170643430,-1540.65,0.00024109,6]
[366275195,1750170643440,-460.0,0.00024109,6]
[366275197,1750170643450,-460.0,0.00024109,6]
[366275199,1750170643459,-663.63,0.00024109,6]
[366275201,1750170643469,-460.0,0.00024109,6]
[366275203,1750170643479,-1268.46,0.00024109,6]
[366275205,1750170643489,-440.0,0.00024109,6]
[366275206,1750170643498,-460.0,0.00024109,6]
[366275208,1750170643508,-460.0,0.00024109,6]
[366275211,1750170643518,-460.0,0.00024109,6]
[366275213,1750170643530,-935.47,0.00024109,6]
[366275215,1750170643540,-2724.36,0.00024109,6]
[366275217,1750170643550,-460.0,0.00024109,6]
[366275219,1750170643560,-3840.13,0.00024109,6]
[366275220,1750170643570,-7288.05,0.00024109,6]
[366275223,1750170643580,-460.0,0.00024109,6]
[366275225,1750170643590,-437.38585449,0.00024109,6]
[366275226,1750170643600,-1040.59,0.00024109,6]
[366275229,1750170643610,-1917.42,0.00024109,2]
[366275230,1750170643620,-460.0,0.00024109,6]
[366275233,1750170643631,-500.0,0.00024109,6]
[366275234,1750170643641,-430.0,0.00024109,6]
[366275236,1750170643651,-500.0,0.00024109,6]
[366275238,1750170643662,-500.0,0.00024109,6]
[366275241,1750170643673,-500.0,0.00024109,6]
[366275243,1750170643683,-500.0,0.00024109,6]
[366275245,1750170643693,-1174.45,0.00024109,6]
[366275246,1750170643703,-500.0,0.00024109,6]
[366275248,1750170643713,-500.0,0.00024109,6]
[366275250,1750170643723,-460.0,0.00024109,6]
[366275252,1750170643734,-500.0,0.00024109,6]
[366275255,1750170643744,-500.0,0.00024109,6]
[366275256,1750170643754,-460.0,0.00024109,6]
[366275258,1750170643764,-184.0817168,0.00024109,6]
[366275264,1750170643858,-1333.41,0.00024109,6]
[366275265,1750170643886,-460.0,0.00024109,6]
[366275266,1750170643897,-460.0,0.00024109,6]
[366275267,1750170643907,-410.31551418,0.00024109,6]
[366275268,1750170643918,-1145.24,0.00024109,6]
[366275269,1750170643928,-460.0,0.00024109,6]
[366275270,1750170643938,-460.0,0.00024109,6]
[366275271,1750170643947,-460.0,0.00024109,6]
[366275272,1750170643957,-460.0,0.00024109,6]
[366275273,1750170643967,-596.75080527,0.00024109,6]
[366275274,1750170643977,-460.0,0.00024109,6]
[366275275,1750170643986,-2132.46,0.00024109,6]
[366275276,1750170643997,-803.49,0.00024109,6]
[366275277,1750170644008,-460.0,0.00024109,6]
[366275278,1750170644018,-460.0,0.00024109,6]
[366275279,1750170644028,-436.55540413,0.00024109,6]
[366275280,1750170644037,-465.77,0.00024109,6]
[366275281,1750170644047,-832.17,0.00024109,6]
[366275282,1750170644056,-643.51,0.00024109,6]
[366275283,1750170644066,-460.0,0.00024109,6]
[366275284,1750170644076,-501.88,0.00024109,6]
[366275285,1750170644085,-460.0,0.00024109,6]
[366275286,1750170644096,-5232.99,0.00024109,6]
[366275287,1750170644106,-460.0,0.00024109,6]
[366275288,1750170644115,-460.0,0.00024109,6]
[366275289,1750170644125,-326.40534522,0.00024109,6]
[366275290,1750170644135,-460.0,0.00024109,6]
[366275291,1750170644145,-460.0,0.00024109,6]
[366275292,1750170644155,-7478.6,0.00024109,6]
[366275293,1750170644164,-1240.76,0.00024109,6]
[366275294,1750170644174,-460.0,0.00024109,6]
[366275296,1750170644183,-460.0,0.00024109,6]
[366275298,1750170644193,-440.0,0.00024109,6]
[366275300,1750170644203,-500.0,0.00024109,6]
[366275302,1750170644212,-500.0,0.00024109,6]
[366275304,1750170644222,-8502.49,0.00024109,6]
[366275306,1750170644231,-556.75555567,0.00024109,6]
[366275308,1750170644241,-460.0,0.00024109,6]
[366275310,1750170644252,-460.0,0.00024109,6]
[366275312,1750170644262,-460.0,0.00024109,6]
[366275314,1750170644272,-460.0,0.00024109,6]
[366275316,1750170644281,-6599.11,0.00024109,6]
[366275318,1750170644291,-460.0,0.00024109,6]
[366275320,1750170644302,-460.0,0.00024109,6]
[366275322,1750170644311,-276.96288107,0.00024109,6]
[366275324,1750170644321,-461.97,0.00024109,6]
[366275326,1750170644331,-440.0,0.00024109,6]
[366275328,1750170644340,-460.0,0.00024109,6]
[366275330,1750170644350,-460.0,0.00024109,6]
[366275332,1750170644359,-460.0,0.00024109,6]
[366275334,1750170644369,-786.24,0.00024109,6]
[366275335,1750170644378,-1099.54,0.00024109,6]
[366275337,1750170644388,-1622.68,0.00024109,6]
[366275339,1750170644398,-2000.62,0.00024109,6]
[366275341,1750170644407,-460.0,0.00024109,6]
[366275343,1750170644417,-460.0,0.00024109,6]
[366275345,1750170644427,-460.0,0.00024109,6]
[366275347,1750170644436,-460.0,0.00024109,6]
[366275349,1750170644446,-460.0,0.00024109,6]
[366275351,1750170644455,-606.83,0.00024109,6]
[366275353,1750170644465,-865.2,0.00024109,6]
[366275355,1750170644474,-460.0,0.00024109,6]
[366275357,1750170644484,-460.0,0.00024109,6]
[366275359,1750170644494,-460.0,0.00024109,6]
[366275361,1750170644503,-460.0,0.00024109,6]
[366275363,1750170644513,-410.0,0.00024109,6]
[366275365,1750170644522,-743.98,0.00024109,6]
[366275367,1750170644531,-460.0,0.00024109,6]
[366275369,1750170644541,-2502.73,0.00024109,6]
[366275371,1750170644550,-460.0,0.00024109,6]
[366275373,1750170644559,-460.0,0.00024109,6]
[366275375,1750170644569,-1000.96,0.00024109,6]
[366275377,1750170644578,-2971.19,0.00024109,6]
[366275379,1750170644588,-468.44820745,0.00024109,6]
[366275381,1750170644598,-460.0,0.00024109,6]
[366275383,1750170644607,-500.0,0.00024109,6]
[366275385,1750170644617,-2366.14,0.00024109,6]
[366275387,1750170644628,-1659.82,0.00024109,6]
[366275389,1750170644637,-460.0,0.00024109,6]
[366275391,1750170644647,-380.27794243,0.00024109,6]
[366275393,1750170644657,-460.0,0.00024109,6]
[366275395,1750170644666,-460.0,0.00024109,6]
[366275397,1750170644675,-460.0,0.00024109,6]
[366275399,1750170644685,-460.0,0.00024109,6]
[366275400,1750170644695,-460.0,0.00024109,6]
[366275402,1750170644705,-5996.27,0.00024109,6]
[366275404,1750170644715,-460.0,0.00024109,6]
[366275406,1750170644725,-460.0,0.00024109,6]
[366275408,1750170644734,-460.0,0.00024109,6]
[366275410,1750170644744,-430.0,0.00024109,6]
[366275412,1750170644754,-460.0,0.00024109,6]
[366275414,1750170644764,-790.96,0.00024109,6]
[366275416,1750170644774,-913.6,0.00024109,6]
[366275418,1750170644783,-460.0,0.00024109,6]
[366275420,1750170644793,-431.15458737,0.00024109,6]
[366275422,1750170644804,-520.76,0.00024109,6]
[366275424,1750170644817,-460.0,0.00024109,6]
[366275426,1750170644827,-460.0,0.00024109,6]
[366275428,1750170644836,-460.0,0.00024109,6]
[366275430,1750170644845,-3158.59,0.00024109,6]
[366275432,1750170644856,-460.0,0.00024109,6]
[366275434,1750170644866,-460.0,0.00024109,6]
[366275436,1750170644875,-500.0,0.00024109,6]
[366275438,1750170644886,-500.0,0.00024109,6]
[366275440,1750170644895,-500.0,0.00024109,6]
[366275442,1750170644905,-500.0,0.00024109,6]
[366275444,1750170644915,-500.0,0.00024109,6]
[366275446,1750170644924,-358.907453,0.00024109,6]
[366275448,1750170644933,-460.0,0.00024109,6]
[366275450,1750170644943,-460.0,0.00024109,6]
[366275452,1750170644952,-1186.41,0.00024109,6]
[366275454,1750170644961,-460.0,0.00024109,6]
[366275456,1750170644970,-430.0,0.00024109,6]
[366275457,1750170644980,-440.0,0.00024109,6]
[366275459,1750170644989,-460.0,0.00024109,6]
[366275461,1750170644998,-430.23911861,0.00024109,6]
[366275463,1750170645008,-533.17999333,0.00024109,6]
[366275465,1750170645018,-1367.69,0.00024109,6]
[366275467,1750170645027,-460.0,0.00024109,6]
[366275469,1750170645036,-477.92946374,0.00024109,6]
[366275471,1750170645046,-460.0,0.00024109,6]
[366275473,1750170645055,-460.0,0.00024109,6]
[366275475,1750170645064,-2693.35,0.00024109,6]
[366275477,1750170645073,-430.0,0.00024109,6]
[366275479,1750170645082,-504.9152716,0.00024109,6]
[366275481,1750170645091,-460.0,0.00024109,6]
[366275483,1750170645101,-441.60381365,0.00024109,6]
[366275485,1750170645110,-460.0,0.00024109,6]
[366275487,1750170645120,-1577.3,0.00024109,6]
[366275489,1750170645129,-460.0,0.00024109,6]
[366275491,1750170645138,-595.02,0.00024109,6]
[366275493,1750170645147,-460.0,0.00024109,6]
[366275495,1750170645156,-460.0,0.00024109,6]
[366275496,1750170645166,-2030.29,0.00024109,6]
[366275498,1750170645175,-460.0,0.00024109,6]
[366275500,1750170645184,-438.99273223,0.00024109,6]
[366275502,1750170645193,-460.0,0.00024109,6]
[366275504,1750170645202,-460.0,0.00024109,6]
[366275506,1750170645212,-460.0,0.00024109,6]
[366275508,1750170645221,-460.0,0.00024109,6]
[366275510,1750170645231,-460.0,0.00024109,6]
[366275512,1750170645240,-460.0,0.00024109,6]
[366275514,1750170645249,-1039.95,0.00024109,6]
[366275516,1750170645259,-460.0,0.00024109,6]
[366275518,1750170645268,-460.0,0.00024109,6]
[366275520,1750170645277,-239.02385376,0.00024109,6]
[366275522,1750170645287,-671.88,0.00024109,6]
[366275524,1750170645296,-460.0,0.00024109,6]
[366275526,1750170645306,-370.0,0.00024109,6]
[366275528,1750170645316,-460.0,0.00024109,6]
[366275530,1750170645325,-1594.92,0.00024109,6]
[366275532,1750170645334,-583.75810959,0.00024109,6]
[366275534,1750170645344,-460.0,0.00024109,6]
[366275536,1750170645353,-460.0,0.00024109,6]
[366275538,1750170645362,-7374.14,0.00024109,6]
[366275540,1750170645372,-1949.63,0.00024109,6]
[366275542,1750170645381,-858.85,0.00024109,6]
[366275544,1750170645390,-460.0,0.00024109,6]
[366275546,1750170645400,-1093.65,0.00024109,6]
[366275548,1750170645410,-460.0,0.00024109,6]
[366275550,1750170645419,-460.0,0.00024109,6]
[366275552,1750170645428,-460.0,0.00024109,6]
[366275554,1750170645437,-915.3,0.00024109,6]
[366275555,1750170645446,-904.51,0.00024109,6]
[366275557,1750170645455,-460.0,0.00024109,6]
[366275559,1750170645465,-263.86255829,0.00024109,6]
[366275561,1750170645474,-460.0,0.00024109,6]
[366275563,1750170645483,-460.0,0.00024109,6]
[366275565,1750170645493,-460.0,0.00024109,6]
[366275567,1750170645502,-460.0,0.00024109,6]
[366275569,1750170645512,-460.0,0.00024109,6]
[366275582,1750170645522,-609.22,0.00024109,6]
[366275584,1750170645642,-460.0,0.00024109,6]
[366275586,1750170645653,-217.34797207,0.00024109,6]
[366275588,1750170645662,-460.0,0.00024109,6]
[366275590,1750170645672,-522.20349643,0.00024109,6]
[366275592,1750170645681,-440.0,0.00024109,6]
[366275594,1750170645691,-467.10957354,0.00024109,6]
[366275596,1750170645701,-5776.56,0.00024109,6]
[366275598,1750170645710,-460.0,0.00024109,6]
[366275600,1750170645720,-460.0,0.00024109,6]
[366275602,1750170645729,-460.0,0.00024109,6]
[366275604,1750170645739,-460.0,0.00024109,6]
[366275606,1750170645749,-548.56,0.00024109,6]
[366275608,1750170645758,-1266.57,0.00024109,2]
[366275610,1750170645769,-460.0,0.00024109,6]
[366275612,1750170645779,-460.0,0.00024109,6]
[366275614,1750170645788,-460.0,0.00024109,6]
[366275616,1750170645798,-460.0,0.00024109,6]
[366275618,1750170645813,-5098.43,0.00024109,6]
[366275620,1750170645823,-460.0,0.00024109,6]
[366275622,1750170645833,-460.0,0.00024109,6]
[366275624,1750170645843,-460.0,0.00024109,6]
[366275626,1750170645852,-460.0,0.00024109,6]
[366275628,1750170645862,-460.0,0.00024109,6]
[366275630,1750170645871,-460.0,0.00024109,6]
[366275632,1750170645882,-370.81391833,0.00024136,6]
[366275634,1750170645892,-460.0,0.00024136,6]
[366275636,1750170645902,-443.57215356,0.00024136,6]
[366275638,1750170645911,-430.0,0.00024136,6]
[366275640,1750170645922,-460.0,0.00024136,6]
[366275642,1750170645931,-435.28217313,0.00024136,6]
[366275644,1750170645940,-460.0,0.00024136,6]
[366275646,1750170645950,-460.0,0.00024136,6]
[366275647,1750170645959,-460.0,0.00024136,6]
[366275649,1750170645969,-460.0,0.00024136,6]
[366275651,1750170645979,-488.25321314,0.00024136,6]
[366275653,1750170645988,-460.0,0.00024136,6]
[366275655,1750170645998,-460.0,0.00024136,6]
[366275657,1750170646008,-500.0,0.00024136,6]
[366275659,1750170646017,-460.0,0.00024136,6]
[366275661,1750170646027,-460.0,0.00024136,6]
[366275664,1750170646037,-460.0,0.00024136,6]
[366275665,1750170646047,-460.0,0.00024136,6]
[366275667,1750170646057,-460.0,0.00024136,6]
[366275670,1750170646067,-460.0,0.00024136,6]
[366275671,1750170646079,-405.74648125,0.00024136,6]
[366275673,1750170646089,-256.65704477,0.00024136,6]
[366275675,1750170646098,-460.0,0.00024136,6]
[366275677,1750170646108,-460.0,0.00024136,6]
[366275679,1750170646118,-460.0,0.00024136,6]
[366275681,1750170646127,-460.0,0.00024136,6]
[366275683,1750170646137,-460.0,0.00024136,6]
[366275685,1750170646146,-460.0,0.00024136,6]
[366275687,1750170646156,-460.0,0.00024136,6]
[366275689,1750170646165,-526.7482233,0.00024136,6]
[366275691,1750170646175,-460.0,0.00024136,6]
[366275693,1750170646184,-460.0,0.00024136,6]
[366275696,1750170646194,-460.0,0.00024136,6]
[366275697,1750170646203,-460.0,0.00024136,6]
[366275699,1750170646212,-460.0,0.00024136,6]
[366275701,1750170646221,-213.22763209,0.00024136,6]
[366275703,1750170646231,-460.0,0.00024136,6]
[366275705,1750170646240,-460.0,0.00024136,6]
[366275707,1750170646250,-460.0,0.00024136,6]
[366275709,1750170646259,-460.0,0.00024136,6]
[366275711,1750170646269,-422.34541584,0.00024136,6]
[366275713,1750170646278,-288.54690044,0.00024136,6]
[366275715,1750170646288,-460.0,0.00024136,6]
[366275717,1750170646297,-460.0,0.00024136,6]
[366275719,1750170646307,-460.0,0.00024136,6]
[366275721,1750170646316,-440.0,0.00024136,6]
[366275723,1750170646327,-460.0,0.00024136,6]
[366275725,1750170646337,-400.09493162,0.00024136,6]
[366275727,1750170646347,-440.0,0.00024136,6]
[366275729,1750170646356,-460.0,0.00024136,6]
[366275731,1750170646365,-460.0,0.00024136,6]
[366275733,1750170646375,-460.0,0.00024136,6]
[366275735,1750170646384,-460.0,0.00024136,6]
[366275737,1750170646393,-460.0,0.00024136,6]
[366275739,1750170646402,-460.0,0.00024136,6]
[366275741,1750170646412,-460.0,0.00024136,6]
[366275743,1750170646421,-206.2951179,0.00024136,6]
[366275745,1750170646430,-460.0,0.00024136,6]
[366275747,1750170646439,-460.0,0.00024136,6]
[366275749,1750170646449,-460.0,0.00024136,6]
[366275751,1750170646458,-460.0,0.00024136,6]
[366275753,1750170646467,-460.0,0.00024136,6]
[366275755,1750170646477,-460.0,0.00024136,6]
[366275757,1750170646486,-400.0,0.00024136,6]
[366275759,1750170646495,-460.0,0.00024136,6]
[366275761,1750170646505,-460.0,0.00024136,6]
[366275763,1750170646516,-460.0,0.00024136,6]
[366275765,1750170646526,-460.0,0.00024136,6]
[366275767,1750170646535,-295.17162674,0.00024136,6]